bitfinex-derivatives/quotes_SOLF0:USTF0_20250803
["timestamp","ask_amount","ask_price","bid_price","bid_amount"]
[1754258988462,9.4331,161.2,161.16,121.6643]
[1754258988664,3.23,161.19,161.16,125.2043]
[1754258989065,3.23,161.19,161.17,3.54]
[1754258989361,3.23,161.18,161.17,3.54]
[1754258989762,3.23,161.17,161.13,3.54]
[1754258989961,3.23,161.15,161.14,115.46]
[1754258991167,3.23,161.15,161.14,119.0]
[1754258991364,3.23,161.15,161.14,3.54]
[1754258991565,3.23,161.15,161.14,119.0]
[1754258992064,3.23,161.15,161.14,3.54]
[1754258992269,3.23,161.15,161.14,119.0]
[1754258994372,3.23,161.15,161.14,125.2051]
[1754258995167,3.23,161.15,161.14,119.0]
[1754258996170,6.204,161.17,161.14,119.0]
[1754258996472,3.23,161.16,161.15,3.54]
[1754258999472,3.23,161.19,161.15,3.54]
[1754258999766,3.23,161.2,161.16,3.54]
[1754258999966,3.23,161.2,161.18,3.54]
[1754259000276,3.23,161.25,161.19,3.54]
[1754259000478,4.94460463,161.26,161.17,120.40460463]
[1754259000479,3.23,161.23,161.2,115.46]
[1754259000772,3.23,161.23,161.22,3.54]
[1754259001769,4.94460463,161.26,161.22,3.54]
[1754259001972,3.23,161.24,161.22,3.54]
[1754259002275,3.23,161.24,161.23,3.54]
[1754259002675,3.23,161.24,161.21,121.6623]
[1754259002870,3.23,161.23,161.22,3.54]
[1754259003579,3.23,161.24,161.23,3.54]
[1754259004774,3.23,161.24,161.22,6.2021]
[1754259004976,3.23,161.24,161.22,118.98]
[1754259005179,4.94460463,161.28,161.22,118.98]
[1754259005478,3.23,161.23,161.22,118.98]
[1754259005776,3.23,161.31,161.23,3.54]
[1754259005979,4.64400632,161.3,161.24,4.94460463]
[1754259006179,4.64400632,161.29,161.28,6.1998]
[1754259006480,3.23,161.3,161.29,3.54]
[1754259007181,3.23,161.3,161.29,9.7394]
[1754259007684,3.23,161.32,161.29,9.7394]
[1754259007881,7.87487864,161.31,161.3,3.54]
[1754259008278,3.23,161.31,161.3,3.54]
[1754259009180,3.23,161.31,161.3,115.42]
[1754259011881,3.23,161.31,161.27,3.54]
[1754259012081,3.23,161.31,161.28,118.94]
[1754259012681,3.23,161.3,161.19,3.54]
[1754259012886,3.23,161.3,161.23,3.54]
[1754259013187,9.4293,161.3,161.25,9.7408]
[1754259013381,3.23,161.29,161.25,6.2008]
[1754259013581,3.23,161.29,161.27,3.54]
[1754259014092,3.34,161.28,161.27,3.54]
[1754259014384,6.92251471,161.38,161.27,3.54]
[1754259014385,4.94460463,161.33,161.27,3.54]
[1754259014593,3.34,161.3,161.29,3.42]
[1754259015387,3.34,161.3,161.28,115.38]
[1754259015591,3.34,161.3,161.25,3.42]
[1754259015779,3.34,161.29,161.26,115.38]
[1754259016782,6.2001,161.28,161.26,115.38]
[1754259016984,3.34,161.27,161.26,118.8]
[1754259017281,3.34,161.28,161.27,3.42]
[1754259017487,4.94460463,161.3,161.27,3.42]
[1754259017488,3.34,161.3,161.27,3.42]
[1754259018987,3.34,161.3,161.27,9.6201]
[1754259019187,3.34,161.3,161.27,6.2001]
[1754259019489,3.34,161.3,161.29,3.42]
[1754259020487,3.34,161.32,161.29,3.42]
[1754259020687,3.34,161.35,161.31,3.42]
[1754259020983,3.34,161.33,161.31,3.42]
[1754259021186,6.1975,161.34,161.31,3.42]
[1754259021387,3.34,161.32,161.31,3.42]
[1754259021980,3.34,161.32,161.31,118.78]
[1754259022893,3.34,161.32,161.31,3.42]
[1754259024986,3.34,161.32,161.29,3.42]
[1754259025194,3.34,161.32,161.27,6.2001]
[1754259025195,3.34,161.32,161.27,3.42]
[1754259025389,3.34,161.32,161.29,118.78]
[1754259025686,4.94460463,161.36,161.3,3.42]
[1754259025895,3.34,161.34,161.3,3.42]
[1754259026389,3.34,161.33,161.3,3.42]
[1754259026589,3.34,161.33,161.3,6.1987]
[1754259026892,3.34,161.33,161.32,3.42]
[1754259027190,3.34,161.33,161.32,118.76]
[1754259027390,3.34,161.35,161.33,3.42]
[1754259027590,3.34,161.36,161.33,3.42]
[1754259027791,3.34,161.34,161.33,3.42]
[1754259029392,3.34,161.34,161.32,118.76]
[1754259029591,3.34,161.34,161.33,115.34]
[1754259030491,3.34,161.34,161.33,118.76]
[1754259032393,6.1968,161.36,161.34,3.42]
[1754259032394,3.34,161.36,161.34,3.42]
[1754259032696,6.1957,161.39,161.34,6.1972]
[1754259032896,7.95654826,161.38,161.35,3.42]
[1754259033098,3.34,161.38,161.37,3.42]
[1754259033397,7.95612151,161.38,161.37,3.42]
[1754259034089,4.61612151,161.38,161.37,3.42]
[1754259034290,7.95612151,161.38,161.37,3.42]
[1754259034693,4.61612151,161.38,161.37,3.42]
[1754259034998,3.34,161.39,161.37,3.42]
[1754259035191,3.34,161.39,161.38,3.42]
[1754259035592,7.95652655,161.39,161.38,3.42]
[1754259035794,3.34,161.39,161.38,3.42]
[1754259035989,9.5355,161.39,161.36,118.74]
[1754259036187,3.34,161.38,161.36,118.74]
[1754259036501,3.34,161.37,161.36,118.74]
[1754259037799,3.34,161.39,161.36,118.74]
[1754259038098,3.34,161.38,161.37,3.42]
[1754259038902,3.34,161.42,161.37,3.42]
[1754259039097,4.61931408,161.41,161.37,3.42]
[1754259039294,3.34,161.39,161.38,3.42]
[1754259039699,3.34,161.39,161.38,118.72]
[1754259041299,7.9637585,161.39,161.38,118.72]
[1754259041900,3.34,161.41,161.39,3.42]
[1754259042201,3.34,161.41,161.38,115.3]
[1754259042202,3.34,161.41,161.4,3.42]
[1754259042397,7.96653108,161.41,161.4,3.42]
[1754259045403,7.96653108,161.41,161.4,118.68]
[1754259045605,4.63072609,161.41,161.4,115.26]
[1754259046205,4.63072609,161.41,161.4,118.62]
[1754259046405,8.04072609,161.41,161.4,118.62]
[1754259053211,8.04333368,161.41,161.4,118.62]
[1754259054408,1.07850126,161.47,161.4,115.26]
[1754259054409,3.41,161.45,161.4,115.26]
[1754259054604,4.63326047,161.44,161.41,3.36]
[1754259054804,4.63326047,161.43,161.41,3.36]
[1754259055008,4.63326047,161.42,161.41,9.5547]
[1754259055206,3.41,161.44,161.41,6.1947]
[1754259055510,4.63298917,161.43,161.42,3.36]
[1754259056509,4.63298917,161.43,161.42,118.58]
[1754259056707,8.04298917,161.43,161.42,118.58]
[1754259057616,8.04160349,161.43,161.42,118.58]
[1754259058215,4.63160349,161.43,161.42,118.58]
[1754259058513,3.41,161.44,161.43,3.36]
[1754259058713,8.0411238,161.44,161.43,3.36]
[1754259060113,3.41,161.43,161.37,233.0]
[1754259060313,3.41,161.43,161.39,3.36]
[1754259060715,3.41,161.42,161.4,3.36]
[1754259061017,3.41,161.42,161.41,118.56]
[1754259061512,3.41,161.44,161.42,3.36]
[1754259062707,3.41,161.44,161.43,3.36]
[1754259062914,8.04320913,161.44,161.43,3.36]
[1754259065513,3.41,161.43,161.4,3.36]
[1754259065813,9.6044,161.43,161.41,115.18]
[1754259066012,3.41,161.42,161.41,118.54]
[1754259066208,3.41,161.42,161.41,3.36]
[1754259066408,3.41,161.42,161.41,118.54]
[1754259070616,4.94460463,161.46,161.41,115.18]
[1754259070824,3.41,161.44,161.42,3.36]
[1754259071022,4.6429712,161.43,161.42,3.36]
[1754259073125,8.0529712,161.43,161.42,3.36]
[1754259075721,4.6429712,161.43,161.42,3.36]
[1754259076726,7.9329712,161.43,161.42,3.36]
[1754259078521,7.9329712,161.43,161.38,237.94460463]
[1754259078522,3.29,161.42,161.38,233.0]
[1754259078725,3.29,161.4,161.39,115.14]
[1754259079326,7.94805724,161.4,161.39,115.14]
[1754259079826,10.85325724,161.4,161.38,3.38]
[1754259080031,3.29,161.39,161.38,3.38]
[1754259080229,3.29,161.39,161.38,118.52]
[1754259081231,7.95031535,161.39,161.38,118.52]
[1754259082227,3.29,161.38,161.35,416.28]
[1754259082522,3.29,161.38,161.36,115.12]
[1754259082731,4.94460463,161.39,161.36,115.12]
[1754259082732,7.95219505,161.37,161.36,115.12]
[1754259082923,4.66219505,161.37,161.35,416.28]
[1754259083124,4.66219505,161.37,161.32,3.38]
[1754259083125,7.95183047,161.36,161.32,3.38]
[1754259083426,3.29,161.34,161.33,115.12]
[1754259083627,6.1979,161.33,161.27,11.37055331]
[1754259083929,3.29,161.32,161.28,115.12]
[1754259084125,3.29,161.32,161.29,3.38]
[1754259084325,3.29,161.32,161.28,115.12]
[1754259084628,4.94460463,161.35,161.26,416.28]
[1754259084843,4.65928011,161.34,161.27,115.12]
[1754259085132,4.65928011,161.33,161.28,3.38]
[1754259085328,4.65928011,161.32,161.29,115.12]
[1754259085529,3.29,161.34,161.3,3.38]
[1754259085733,4.6549176,161.33,161.32,3.38]
[1754259086728,3.29,161.32,161.31,115.14]
[1754259086929,7.9449176,161.32,161.31,115.14]
[1754259089229,4.6549176,161.32,161.3,3.38]
[1754259089537,3.29,161.31,161.3,3.38]
[1754259089738,3.29,161.31,161.3,118.52]
[1754259089934,6.1976,161.34,161.3,3.38]
[1754259090239,7.93745128,161.33,161.31,118.52]
[1754259090438,3.29,161.33,161.29,6.1993]
[1754259090938,3.29,161.34,161.31,3.38]
[1754259091133,3.29,161.37,161.31,3.38]
[1754259091332,10.84225652,161.36,161.31,9.5783]
[1754259091530,3.29,161.33,161.27,3.38]
[1754259091727,3.29,161.33,161.29,3.38]
[1754259091936,3.29,161.33,161.28,115.14]
[1754259092136,3.29,161.33,161.3,3.38]
[1754259092334,3.29,161.33,161.31,115.14]
[1754259093443,3.29,161.32,161.31,115.14]
[1754259094247,6.1982,161.32,161.31,115.14]
[1754259094541,9.4882,161.32,161.31,115.14]
[1754259095043,3.29,161.32,161.31,115.14]
[1754259095733,3.29,161.34,161.32,3.38]
[1754259095934,3.29,161.34,161.33,3.38]
[1754259096132,3.29,161.34,161.32,3.38]
[1754259096133,7.92966461,161.34,161.32,3.38]
[1754259096437,3.29,161.34,161.28,4.94460463]
[1754259096739,3.29,161.34,161.33,3.38]
[1754259096942,3.29,161.34,161.32,3.38]
[1754259097142,3.29,161.34,161.33,115.14]
[1754259097641,3.29,161.34,161.32,118.52]
[1754259097841,9.4875,161.34,161.32,118.52]
[1754259098046,3.29,161.33,161.32,118.52]
[1754259098234,4.94460463,161.37,161.32,118.52]
[1754259098544,3.29,161.34,161.33,115.14]
[1754259098744,3.29,161.34,161.31,6.1983]
[1754259098942,3.29,161.34,161.33,115.14]
[1754259099243,3.29,161.34,161.33,118.52]
[1754259099437,3.29,161.34,161.33,3.38]
[1754259099642,3.29,161.34,161.33,118.52]
[1754259100442,3.29,161.34,161.33,3.38]
[1754259100743,3.29,161.34,161.33,118.5]
[1754259101136,3.29,161.34,161.33,3.38]
[1754259101340,3.29,161.35,161.34,3.38]
[1754259102343,3.29,161.35,161.33,121.3179]
[1754259102344,4.94460463,161.4,161.35,3.38]
[1754259102543,3.29,161.37,161.36,118.5]
[1754259102949,7.92668379,161.37,161.36,118.5]
[1754259103350,3.29,161.37,161.36,118.5]
[1754259104048,11.13980463,161.4,161.36,115.12]
[1754259104246,3.48,161.38,161.36,115.12]
[1754259104848,3.48,161.38,161.36,118.65]
[1754259105049,3.48,161.37,161.36,118.65]
[1754259108751,3.48,161.39,161.37,3.53]
[1754259109351,9.6756,161.39,161.36,118.65]
[1754259109551,3.48,161.38,161.37,3.53]
[1754259110350,14.61980463,161.4,161.37,3.53]
[1754259110551,4.64125908,161.39,161.37,3.53]
[1754259110750,3.48,161.39,161.38,3.53]
[1754259110950,8.12125908,161.39,161.38,3.53]
[1754259112548,3.48,161.38,161.37,118.61]
[1754259112753,3.48,161.4,161.38,3.53]
[1754259113456,3.48,161.4,161.37,121.276]
[1754259113659,3.48,161.41,161.37,115.08]
[1754259113949,3.48,161.44,161.38,3.53]
[1754259114250,3.48,161.41,161.38,3.53]
[1754259114654,3.48,161.41,161.38,6.1957]
[1754259114854,3.48,161.41,161.39,3.53]
[1754259115054,3.48,161.41,161.4,118.61]
[1754259115754,8.12386037,161.41,161.4,115.08]
[1754259116960,4.64386037,161.41,161.37,6.1963]
[1754259117258,3.48,161.4,161.38,121.2559]
[1754259117656,3.48,161.4,161.39,3.53]
[1754259117855,3.48,161.41,161.39,3.53]
[1754259118556,3.48,161.43,161.39,9.7255]
[1754259118862,8.12466434,161.42,161.4,3.53]
[1754259119158,3.48,161.42,161.41,118.57]
[1754259119348,8.12516627,161.42,161.41,118.57]
[1754259122265,8.12516627,161.42,161.41,115.04]
[1754259123563,8.12727506,161.42,161.41,115.04]
[1754259123765,14.32167506,161.42,161.41,115.04]
[1754259125164,10.84167506,161.42,161.39,3.53]
[1754259125359,8.12727506,161.41,161.4,115.02]
[1754259126361,8.12727506,161.41,161.4,118.55]
[1754259126863,4.64727506,161.41,161.4,118.55]
[1754259127755,8.12727506,161.41,161.4,118.55]
[1754259127961,8.12727506,161.41,161.4,115.02]
[1754259128263,14.32207506,161.41,161.4,115.02]
[1754259129266,8.12727506,161.41,161.4,115.02]
[1754259129666,4.64727506,161.41,161.35,233.0]
[1754259129872,3.48,161.38,161.31,3.53]
[1754259130170,3.48,161.38,161.33,3.53]
[1754259130360,3.48,161.37,161.34,3.53]
[1754259130556,3.48,161.37,161.35,115.0]
[1754259130757,3.48,161.37,161.36,3.53]
[1754259130968,8.12655125,161.37,161.36,3.53]
[1754259131470,3.48,161.36,161.35,114.98]
[1754259131664,4.64655125,161.36,161.31,233.0]
[1754259131861,3.48,161.35,161.33,3.53]
[1754259132265,6.1964,161.37,161.33,3.53]
[1754259132569,8.12797529,161.36,161.34,118.51]
[1754259132869,3.48,161.36,161.35,3.53]
[1754259133065,8.127977,161.36,161.35,3.53]
[1754259134068,8.127977,161.36,161.35,118.53]
[1754259134365,4.647977,161.36,161.35,124.7271]
[1754259134570,3.2,161.41,161.36,3.48]
[1754259134873,7.8505988,161.4,161.37,6.1962]
[1754259135071,4.6505988,161.39,161.38,118.46]
[1754259136275,4.6505988,161.39,161.38,124.6559]
[1754259136572,3.2,161.41,161.39,3.48]
[1754259136772,4.65208831,161.4,161.38,114.98]
[1754259136973,9.3948,161.41,161.38,114.98]
[1754259137173,4.65209001,161.4,161.38,114.98]
[1754259137370,9.3948,161.41,161.39,3.48]
[1754259137571,4.65240947,161.4,161.39,3.48]
[1754259138268,3.2,161.43,161.39,3.48]
[1754259138468,4.65373936,161.42,161.39,3.48]
[1754259138772,3.2,161.45,161.39,3.48]
[1754259138968,7.85373935,161.44,161.39,3.48]
[1754259139172,7.85373935,161.44,161.42,3.48]
[1754259139173,4.65373935,161.43,161.42,3.48]
[1754259139368,4.65373935,161.43,161.42,118.44]
[1754259140367,4.65373935,161.43,161.42,124.6344]
[1754259140864,4.65373935,161.43,161.42,118.44]
[1754259141065,7.85373935,161.43,161.42,114.96]
[1754259141466,10.84773935,161.43,161.42,114.96]
[1754259141672,7.85373935,161.43,161.42,114.96]
[1754259142070,7.85373935,161.43,161.42,118.44]
[1754259142877,4.65373935,161.43,161.42,124.6344]
[1754259143079,3.2,161.45,161.42,121.1544]
[1754259143278,7.8552984,161.44,161.43,3.48]
[1754259145983,7.8552984,161.44,161.43,118.4]
[1754259147082,7.8552984,161.44,161.4,6.1951]
[1754259147281,3.2,161.42,161.41,118.4]
[1754259147482,7.8552984,161.42,161.41,118.4]
[1754259148979,7.8552984,161.42,161.41,118.38]
[1754259149379,7.8552984,161.42,161.41,3.48]
[1754259149578,7.8552984,161.42,161.41,118.38]
[1754259151484,7.8552984,161.42,161.41,124.5748]
[1754259151685,7.8552984,161.42,161.41,124.5548]
[1754259152384,4.6552984,161.42,161.41,124.5548]
[1754259153079,3.2,161.43,161.42,3.48]
[1754259153275,7.85839408,161.43,161.42,3.48]
[1754259153482,7.85839408,161.43,161.42,118.36]
[1754259156787,7.85839408,161.43,161.42,124.5544]
[1754259157583,7.85839408,161.43,161.42,9.6744]
[1754259157787,7.85839408,161.43,161.42,124.5344]
[1754259157988,7.85839408,161.43,161.42,118.34]
[1754259158688,4.65839408,161.43,161.42,118.34]
[1754259159479,4.65839408,161.43,161.42,124.5344]
[1754259160289,3.2,161.46,161.44,3.48]
[1754259160589,3.2,161.46,161.45,118.32]
[1754259160889,7.85921637,161.46,161.45,118.32]
[1754259161377,7.85921637,161.46,161.45,114.84]
[1754259161788,4.65921637,161.46,161.45,118.32]
[1754259161984,3.2,161.48,161.45,118.32]
[1754259162283,4.94460463,161.51,161.46,3.48]
[1754259162284,7.87359048,161.47,161.46,3.48]
[1754259162788,7.87359048,161.47,161.45,114.84]
[1754259162789,3.2,161.46,161.45,114.84]
[1754259162988,3.2,161.45,161.42,236.48]
[1754259163287,3.2,161.44,161.43,114.84]
[1754259163689,3.2,161.44,161.43,118.32]
[1754259164378,3.37,161.46,161.43,3.48]
[1754259164580,4.67097872,161.45,161.44,118.2]
[1754259164984,3.37,161.45,161.44,118.2]
[1754259165585,3.37,161.45,161.44,3.38]
[1754259165888,8.04088441,161.45,161.44,118.2]
[1754259166292,3.37,161.44,161.42,3.38]
[1754259166490,3.37,161.44,161.43,118.2]
[1754259168189,3.37,161.44,161.39,3.38]
[1754259168390,10.86238673,161.43,161.39,6.1955]
[1754259168585,3.37,161.42,161.4,118.18]
[1754259168793,3.37,161.42,161.4,3.38]
[1754259168991,3.37,161.42,161.38,3.38]
[1754259168992,4.66781019,161.41,161.38,3.38]
[1754259169193,3.37,161.4,161.39,114.8]
[1754259169694,3.37,161.4,161.39,118.18]
[1754259171292,11.13870463,161.43,161.39,118.18]
[1754259171493,3.37,161.41,161.4,3.38]
[1754259171693,8.03815894,161.41,161.4,3.38]
[1754259171892,4.66815894,161.41,161.39,118.18]
[1754259172093,3.37,161.4,161.39,118.18]
[1754259172299,3.37,161.4,161.39,118.16]
[1754259172497,3.37,161.4,161.39,3.38]
[1754259172699,3.37,161.4,161.39,124.3756]
[1754259172900,3.37,161.41,161.39,120.9956]
[1754259173101,3.37,161.41,161.4,3.38]
[1754259173299,8.03892311,161.41,161.4,3.38]
[1754259173898,8.03902186,161.41,161.4,3.38]
[1754259174098,8.03902186,161.41,161.4,118.18]
[1754259176207,8.03902186,161.41,161.4,3.38]
[1754259176706,8.03902186,161.41,161.4,118.16]
[1754259177099,3.37,161.4,161.37,3.38]
[1754259177305,9.61752972,161.39,161.37,3.38]
[1754259177506,4.67239909,161.38,161.37,3.38]
[1754259177706,4.67239909,161.38,161.37,118.16]
[1754259178005,8.04239909,161.38,161.37,118.16]
[1754259178201,4.67239909,161.38,161.34,649.34]
[1754259178399,4.94460463,161.39,161.35,114.78]
[1754259178400,3.37,161.36,161.35,114.78]
[1754259179208,3.37,161.36,161.35,118.16]
[1754259180203,3.37,161.36,161.35,3.38]
[1754259180407,8.04608717,161.36,161.35,118.14]
[1754259186009,8.04608717,161.36,161.35,114.76]
[1754259186206,3.37,161.35,161.32,3.38]
[1754259186410,3.37,161.35,161.33,114.76]
[1754259186609,3.37,161.35,161.34,3.38]
[1754259186812,8.03736204,161.35,161.34,3.38]
[1754259187412,3.37,161.34,161.32,114.76]
[1754259187614,3.37,161.33,161.32,114.76]
[1754259187817,3.37,161.33,161.32,118.14]
[1754259188517,3.37,161.35,161.32,114.76]
[1754259188707,3.37,161.35,161.33,3.38]
[1754259189016,3.37,161.34,161.33,3.38]
[1754259190311,4.94460463,161.39,161.33,3.38]
[1754259190514,3.37,161.35,161.33,3.38]
[1754259192814,3.37,161.37,161.34,3.38]
[1754259193014,4.94460463,161.4,161.35,114.74]
[1754259193320,3.37,161.38,161.37,3.38]
[1754259193516,8.04387678,161.38,161.37,3.38]
[1754259193913,8.08387678,161.38,161.37,3.38]
[1754259194821,4.67387678,161.38,161.37,3.38]
[1754259195522,8.08387678,161.38,161.37,3.38]
[1754259198124,3.41,161.36,161.34,3.42]
[1754259198328,3.41,161.36,161.35,118.16]
[1754259198627,8.07932092,161.36,161.35,118.16]
[1754259202729,8.07873229,161.36,161.35,118.16]
[1754259202919,4.66873229,161.36,161.35,118.16]
[1754259203122,4.94460463,161.41,161.35,114.74]
[1754259203321,3.41,161.37,161.36,3.42]
[1754259203527,4.94460463,161.41,161.36,3.42]
[1754259203726,4.66959593,161.4,161.36,3.42]
[1754259203930,4.66959593,161.39,161.36,3.42]
[1754259204129,4.66959593,161.38,161.36,3.42]
[1754259204330,3.41,161.41,161.38,3.42]
[1754259204529,4.66948935,161.4,161.39,114.7]
[1754259205231,4.66948935,161.4,161.39,118.12]
[1754259205430,8.07948935,161.4,161.39,3.42]
[1754259209633,8.07948935,161.4,161.39,118.1]
[1754259210227,8.07948935,161.4,161.39,118.08]
[1754259210829,8.08765485,161.4,161.39,118.08]
[1754259213738,3.41,161.4,161.39,118.08]
[1754259213940,8.09389627,161.4,161.39,118.08]
[1754259214436,4.68389627,161.4,161.39,118.08]
[1754259215339,4.68389627,161.4,161.39,124.2756]
[1754259217544,4.68389627,161.4,161.39,357.2756]
[1754259223451,4.68389627,161.4,161.39,124.2756]
[1754259223653,3.41,161.41,161.4,6.1952]
[1754259223852,8.11076451,161.41,161.4,9.5152]
[1754259224753,4.70076451,161.41,161.4,9.5152]
[1754259227868,3.45,161.42,161.41,9.5148]
[1754259228069,8.14797518,161.42,161.41,124.0948]
[1754259231867,3.45,161.42,161.41,124.0948]
[1754259234163,3.45,161.49,161.43,6.1939]
[1754259234468,3.45,161.47,161.44,117.86]
[1754259234666,3.45,161.45,161.44,117.86]
[1754259234871,8.14426468,161.45,161.44,117.86]
[1754259235059,8.14426468,161.45,161.44,114.54]
[1754259235464,8.14426468,161.45,161.44,117.86]
[1754259236766,8.14426468,161.45,161.44,117.84]
[1754259239272,8.14426468,161.45,161.44,124.0337]
[1754259241171,8.14426468,161.45,161.44,9.5137]
[1754259241371,8.14426468,161.45,161.44,124.0137]
[1754259242370,8.14426468,161.45,161.44,9.5137]
[1754259242572,8.14426468,161.45,161.44,124.0137]
[1754259243273,8.14426468,161.45,161.44,117.82]
[1754259244376,3.45,161.45,161.44,3.32]
[1754259244672,3.45,161.45,161.44,117.8]
[1754259245374,8.1436807,161.45,161.44,117.8]
[1754259245677,8.1431996,161.45,161.44,117.8]
[1754259245878,3.45,161.45,161.44,117.8]
[1754259246672,11.29403009,161.45,161.44,114.46]
[1754259247269,11.29403009,161.45,161.43,114.46]
[1754259247477,8.14383376,161.44,161.43,114.46]
[1754259247879,3.45,161.44,161.43,114.46]
[1754259248375,8.14544206,161.44,161.43,114.46]
[1754259248575,3.45,161.44,161.43,114.46]
[1754259250294,3.45,161.44,161.4,6.1952]
[1754259250480,3.45,161.42,161.41,3.32]
[1754259250686,3.45,161.42,161.38,6.1959]
[1754259250878,3.45,161.42,161.39,117.78]
[1754259251071,3.45,161.42,161.4,3.32]
[1754259251275,3.45,161.42,161.41,114.46]
[1754259251471,6.60019633,161.42,161.41,114.46]
[1754259251878,3.45,161.42,161.41,114.46]
[1754259252181,3.45,161.42,161.41,117.78]
[1754259252182,6.60019633,161.42,161.41,117.78]
[1754259253178,8.12052006,161.42,161.41,117.78]
[1754259253383,3.45,161.42,161.41,117.78]
[1754259254582,8.12147696,161.42,161.41,117.78]
[1754259255585,11.27167329,161.42,161.41,117.76]
[1754259255786,8.12147696,161.42,161.41,117.76]
[1754259255985,11.27167329,161.42,161.41,117.76]
[1754259259288,11.27167329,161.42,161.41,123.9548]
[1754259259788,11.27167329,161.42,161.41,117.76]
[1754259259988,11.276549,161.42,161.41,117.76]
[1754259260489,11.276549,161.42,161.41,123.9548]
[1754259260689,11.276549,161.42,161.41,117.76]
[1754259266600,11.276549,161.42,161.41,117.82]
[1754259266799,11.276549,161.42,161.41,117.78]
[1754259268491,11.276549,161.42,161.41,3.38]
[1754259268896,11.2803223,161.42,161.41,117.78]
[1754259271302,11.2803223,161.42,161.41,117.76]
[1754259277406,7.8303223,161.42,161.38,3.38]
[1754259277603,3.46,161.39,161.38,3.38]
[1754259277804,8.14012597,161.39,161.38,117.74]
[1754259279511,8.14012597,161.39,161.38,3.38]
[1754259279811,8.14012597,161.39,161.38,114.36]
[1754259280002,8.14012597,161.39,161.38,117.74]
[1754259280614,14.33572597,161.39,161.38,117.74]
[1754259280913,14.33572597,161.39,161.38,114.36]
[1754259281109,3.46,161.37,161.34,3.38]
[1754259281316,10.38387563,161.45,161.34,3.38]
[1754259281317,3.46,161.35,161.34,3.38]
[1754259281514,6.61019633,161.36,161.35,3.38]
[1754259281813,11.28471674,161.36,161.35,3.38]
[1754259283117,11.28471674,161.36,161.35,117.72]
[1754259283325,12.80689633,161.36,161.35,117.72]
[1754259283628,17.48065505,161.36,161.35,117.72]
[1754259284516,11.28395505,161.36,161.35,117.72]
[1754259284728,11.28395505,161.36,161.33,3.19]
[1754259284926,6.40019633,161.34,161.33,3.19]
[1754259285125,11.07395505,161.34,161.33,117.53]
[1754259285330,6.40019633,161.34,161.33,117.53]
[1754259285828,3.25,161.36,161.33,114.34]
[1754259286028,4.6712434,161.35,161.34,3.19]